[Event "Titled Tuesday Blitz May 24 Early 2022"]
[White "Shevtchenko, Olesya"]
[Black "Fernandez Hernandez, Gerardo"]
[WhiteFideId "24131890"]
[BlackFideId "2207400"]
[WhiteElo "2003"]
[BlackElo "2211"]
[Result "1-0"]
[Round "09"]
[TimeControl "180+1"]
[Date "2022.05.25"]
[WhiteClock "0:00:09"]
[BlackClock "0:00:32"]

1. c4 {[%clk 0:03:00]}  b6 {[%clk 0:02:45]} 2. Nc3 {[%clk 0:02:58]}  Bb7 {[%clk 0:02:44]} 3. e4 {[%clk 0:02:58]}  e5 {[%clk 0:02:43]} 4. Nf3 {[%clk 0:02:55]}  Nf6 {[%clk 0:02:43]} 5. Nxe5 {[%clk 0:02:50]}  Qe7 {[%clk 0:02:40]} 6. d4 {[%clk 0:02:48]}  d6 {[%clk 0:02:39]} 7. Qa4+ {[%clk 0:02:38]}  c6 {[%clk 0:02:13]} 8. Nf3 {[%clk 0:02:16]}  Nxe4 {[%clk 0:02:13]} 9. Be2 {[%clk 0:02:01]}  Nxc3 {[%clk 0:02:01]} 10. bxc3 {[%clk 0:02:02]}  g6 {[%clk 0:02:01]} 11. O-O {[%clk 0:01:58]}  Bg7 {[%clk 0:02:00]} 12. Re1 {[%clk 0:01:45]}  O-O {[%clk 0:02:00]} 13. Bg5 {[%clk 0:01:35]}  Qd7 {[%clk 0:01:47]} 14. Rad1 {[%clk 0:01:20]}  Re8 {[%clk 0:01:38]} 15. Bd3 {[%clk 0:01:11]}  Na6 {[%clk 0:01:27]} 16. c5 {[%clk 0:01:05]}  Rxe1+ {[%clk 0:01:07]} 17. Rxe1 {[%clk 0:01:04]}  b5 {[%clk 0:01:07]} 18. Qb3 {[%clk 0:00:31]}  Re8 {[%clk 0:00:58]} 19. Rxe8+ {[%clk 0:00:27]}  Qxe8 {[%clk 0:00:58]} 20. cxd6 {[%clk 0:00:27]}  Bf8 {[%clk 0:00:51]} 21. Bf4 {[%clk 0:00:17]}  Nb8 {[%clk 0:00:46]} 22. h3 {[%clk 0:00:16]}  Nd7 {[%clk 0:00:46]} 23. Ne5 {[%clk 0:00:15]}  Nb6 {[%clk 0:00:43]} 24. Ng4 {[%clk 0:00:12]}  Nd5 {[%clk 0:00:40]} 25. Qxd5 {[%clk 0:00:11]}  cxd5 {[%clk 0:00:41]} 26. Nf6+ {[%clk 0:00:11]}  Kh8 {[%clk 0:00:41]} 27. Nxe8 {[%clk 0:00:12]}  Bc6 {[%clk 0:00:40]} 28. Nc7 {[%clk 0:00:12]}  g5 {[%clk 0:00:35]} 29. Bg3 {[%clk 0:00:12]}  f5 {[%clk 0:00:33]} 30. Bxf5 {[%clk 0:00:12]}  Kg7 {[%clk 0:00:33]} 31. Be6 {[%clk 0:00:10]}  Kf6 {[%clk 0:00:33]} 32. Bxd5 {[%clk 0:00:10]}  Bd7 {[%clk 0:00:32]} 33. Be5+ {[%clk 0:00:07]}  Kf5 {[%clk 0:00:31]} 34. Bb3 {[%clk 0:00:07]}  a5 {[%clk 0:00:30]} 35. g4+ {[%clk 0:00:07]}  Ke4 {[%clk 0:00:30]} 36. Be6 {[%clk 0:00:07]}  Bc6 {[%clk 0:00:27]} 37. d7 {[%clk 0:00:06]}  Be7 {[%clk 0:00:27]} 38. Na6 {[%clk 0:00:03]}  b4 {[%clk 0:00:28]} 39. cxb4 {[%clk 0:00:03]}  axb4 {[%clk 0:00:29]} 40. Nb8 {[%clk 0:00:04]}  Bxd7 {[%clk 0:00:28]} 41. Bxd7 {[%clk 0:00:04]}  Kd5 {[%clk 0:00:27]} 42. Kg2 {[%clk 0:00:05]}  h6 {[%clk 0:00:27]} 43. Bc6+ {[%clk 0:00:05]}  Kc4 {[%clk 0:00:26]} 44. Kf3 {[%clk 0:00:06]}  b3 {[%clk 0:00:27]} 45. axb3+ {[%clk 0:00:06]}  Kxb3 {[%clk 0:00:28]} 46. d5 {[%clk 0:00:06]}  Kc4 {[%clk 0:00:28]} 47. d6 {[%clk 0:00:06]}  Bd8 {[%clk 0:00:29]} 48. d7 {[%clk 0:00:06]}  Kc5 {[%clk 0:00:30]} 49. Bb7 {[%clk 0:00:06]}  Kb6 {[%clk 0:00:30]} 50. Bc6 {[%clk 0:00:06]}  Ka7 {[%clk 0:00:30]} 51. Bd6 {[%clk 0:00:06]}  Kb6 {[%clk 0:00:31]} 52. Ke4 {[%clk 0:00:06]}  Ka7 {[%clk 0:00:31]} 53. Ke5 {[%clk 0:00:07]}  Kb6 {[%clk 0:00:31]} 54. Ke6 {[%clk 0:00:07]}  Bc7 {[%clk 0:00:32]} 55. Bxc7+ {[%clk 0:00:07]}  Kxc7 {[%clk 0:00:33]} 56. Ke7 {[%clk 0:00:08]}  h5 {[%clk 0:00:32]} 57. d8=Q# {[%clk 0:00:09]} 1-0


[Site "https://www.chess.com"]

[Event "Titled Tuesday Blitz May 24 Early 2022"]
[White "Shimanov, Aleksandr"]
[Black "Martinez Alcantara, Jose Eduardo"]
[WhiteFideId "4198603"]
[BlackFideId "3805662"]
[WhiteElo "2605"]
[BlackElo "2690"]
[Result "0-1"]
[Round "09"]
[TimeControl "180+1"]
[Date "2022.05.24"]
[WhiteClock "0:00:02"]
[BlackClock "0:00:14"]

1. e4 {[%clk 0:02:57]}  c5 {[%clk 0:03:00]} 2. Nc3 {[%clk 0:02:57]}  Nc6 {[%clk 0:02:59]} 3. Bb5 {[%clk 0:02:54]}  Nd4 {[%clk 0:02:59]} 4. Nf3 {[%clk 0:02:53]}  Nxb5 {[%clk 0:02:59]} 5. Nxb5 {[%clk 0:02:53]}  d6 {[%clk 0:03:00]} 6. d4 {[%clk 0:02:53]}  a6 {[%clk 0:03:01]} 7. Nc3 {[%clk 0:02:53]}  cxd4 {[%clk 0:03:01]} 8. Qxd4 {[%clk 0:02:54]}  e5 {[%clk 0:02:54]} 9. Qd3 {[%clk 0:02:52]}  h6 {[%clk 0:02:44]} 10. Nd2 {[%clk 0:02:40]}  Be6 {[%clk 0:02:43]} 11. Nc4 {[%clk 0:02:38]}  Nf6 {[%clk 0:02:43]} 12. Ne3 {[%clk 0:02:38]}  Rc8 {[%clk 0:02:44]} 13. a4 {[%clk 0:02:37]}  Qc7 {[%clk 0:02:44]} 14. O-O {[%clk 0:02:37]}  Be7 {[%clk 0:02:44]} 15. Bd2 {[%clk 0:02:22]}  O-O {[%clk 0:02:44]} 16. a5 {[%clk 0:02:17]}  Rfd8 {[%clk 0:02:38]} 17. Rfd1 {[%clk 0:02:14]}  Qc6 {[%clk 0:02:33]} 18. Be1 {[%clk 0:02:10]}  Bf8 {[%clk 0:02:29]} 19. Ncd5 {[%clk 0:02:04]}  Bxd5 {[%clk 0:02:28]} 20. exd5 {[%clk 0:02:04]}  Qd7 {[%clk 0:02:25]} 21. c4 {[%clk 0:02:03]}  g6 {[%clk 0:02:19]} 22. b4 {[%clk 0:01:59]}  Nh5 {[%clk 0:02:19]} 23. Rac1 {[%clk 0:01:37]}  Nf4 {[%clk 0:02:13]} 24. Qc2 {[%clk 0:01:30]}  e4 {[%clk 0:02:07]} 25. Bc3 {[%clk 0:01:14]}  Re8 {[%clk 0:01:58]} 26. Ba1 {[%clk 0:01:10]}  f5 {[%clk 0:01:46]} 27. c5 {[%clk 0:00:59]}  Nd3 {[%clk 0:01:18]} 28. c6 {[%clk 0:00:53]}  Qf7 {[%clk 0:01:11]} 29. Rxd3 {[%clk 0:00:45]}  exd3 {[%clk 0:01:10]} 30. Qxd3 {[%clk 0:00:46]}  Re4 {[%clk 0:01:01]} 31. b5 {[%clk 0:00:42]}  axb5 {[%clk 0:00:59]} 32. Qxb5 {[%clk 0:00:42]}  h5 {[%clk 0:00:42]} 33. Rd1 {[%clk 0:00:33]}  f4 {[%clk 0:00:36]} 34. cxb7 {[%clk 0:00:24]}  Rb8 {[%clk 0:00:34]} 35. a6 {[%clk 0:00:12]}  fxe3 {[%clk 0:00:33]} 36. fxe3 {[%clk 0:00:12]}  Bh6 {[%clk 0:00:30]} 37. Qb2 {[%clk 0:00:09]}  Bxe3+ {[%clk 0:00:27]} 38. Kh1 {[%clk 0:00:08]}  Bd4 {[%clk 0:00:27]} 39. Qc2 {[%clk 0:00:07]}  Rf4 {[%clk 0:00:19]} 40. Bxd4 {[%clk 0:00:06]}  Rxd4 {[%clk 0:00:19]} 41. Rb1 {[%clk 0:00:05]}  Rf4 {[%clk 0:00:17]} 42. h3 {[%clk 0:00:04]}  Rf1+ {[%clk 0:00:14]} 43. Kh2 {[%clk 0:00:05]}  Qf4+ {[%clk 0:00:14]} 44. g3 {[%clk 0:00:02]}  Rf2+ {[%clk 0:00:14]} 0-1


[Site "https://www.chess.com"]

[Event "Titled Tuesday Blitz May 24 Early 2022"]
[White "Shuvalov, Evgenij"]
[Black "Artemenko, Oleg"]
[WhiteFideId "4187237"]
[BlackFideId "14201798"]
[WhiteElo "2053"]
[BlackElo "2287"]
[Result "0-1"]
[Round "09"]
[TimeControl "180+1"]
[Date "2022.05.25"]
[WhiteClock "0:00:29"]
[BlackClock "0:01:39"]

1. Nf3 {[%clk 0:03:00]}  Nf6 {[%clk 0:02:59]} 2. c4 {[%clk 0:03:01]}  e6 {[%clk 0:02:57]} 3. g3 {[%clk 0:03:01]}  d5 {[%clk 0:02:57]} 4. Bg2 {[%clk 0:03:01]}  Bd6 {[%clk 0:02:56]} 5. b3 {[%clk 0:03:01]}  O-O {[%clk 0:02:55]} 6. Bb2 {[%clk 0:03:01]}  c6 {[%clk 0:02:56]} 7. O-O {[%clk 0:03:01]}  Nbd7 {[%clk 0:02:56]} 8. d3 {[%clk 0:02:59]}  e5 {[%clk 0:02:55]} 9. cxd5 {[%clk 0:02:58]}  cxd5 {[%clk 0:02:55]} 10. Nc3 {[%clk 0:02:57]}  d4 {[%clk 0:02:55]} 11. Nb5 {[%clk 0:02:56]}  Bb8 {[%clk 0:02:54]} 12. Ba3 {[%clk 0:02:54]}  a6 {[%clk 0:02:54]} 13. Nd6 {[%clk 0:02:31]}  Qe7 {[%clk 0:02:49]} 14. Nc4 {[%clk 0:02:27]}  Qd8 {[%clk 0:02:40]} 15. Bxf8 {[%clk 0:02:26]}  Qxf8 {[%clk 0:02:41]} 16. Rc1 {[%clk 0:02:19]}  a5 {[%clk 0:02:35]} 17. a4 {[%clk 0:02:15]}  Ra6 {[%clk 0:02:34]} 18. Nfd2 {[%clk 0:02:09]}  Nc5 {[%clk 0:02:31]} 19. Na3 {[%clk 0:01:58]}  Be6 {[%clk 0:02:24]} 20. Ndc4 {[%clk 0:01:53]}  Nd5 {[%clk 0:02:19]} 21. Nb5 {[%clk 0:01:50]}  Nb4 {[%clk 0:02:18]} 22. Qd2 {[%clk 0:01:46]}  Nxb3 {[%clk 0:02:16]} 23. Qb2 {[%clk 0:01:43]}  Nxc1 {[%clk 0:02:15]} 24. Rxc1 {[%clk 0:01:44]}  Nc6 {[%clk 0:02:06]} 25. Nd2 {[%clk 0:01:29]}  Rb6 {[%clk 0:01:58]} 26. Nc4 {[%clk 0:01:23]}  Bxc4 {[%clk 0:01:49]} 27. Rxc4 {[%clk 0:01:24]}  Na7 {[%clk 0:01:49]} 28. Qc2 {[%clk 0:01:18]}  Nxb5 {[%clk 0:01:49]} 29. Rc8 {[%clk 0:01:08]}  Nc3 {[%clk 0:01:50]} 30. Rxf8+ {[%clk 0:01:08]}  Kxf8 {[%clk 0:01:50]} 31. h4 {[%clk 0:00:47]}  Bd6 {[%clk 0:01:48]} 32. Bf3 {[%clk 0:00:41]}  Ba3 {[%clk 0:01:44]} 33. Kg2 {[%clk 0:00:40]}  Rb1 {[%clk 0:01:39]} 34. e3 {[%clk 0:00:32]}  Rb2 {[%clk 0:01:38]} 35. Qc1 {[%clk 0:00:30]}  Rxf2+ {[%clk 0:01:38]} 36. Kxf2 {[%clk 0:00:30]}  Bxc1 {[%clk 0:01:39]} 37. exd4 {[%clk 0:00:29]}  exd4 {[%clk 0:01:39]} 38. Bxb7 {[%clk 0:00:29]}  Nxa4 {[%clk 0:01:39]} 39. Bc6 {[%clk 0:00:29]}  Nc3 {[%clk 0:01:39]} 0-1


[Site "https://www.chess.com"]

[Event "Titled Tuesday Blitz May 24 Early 2022"]
[White "Shuvalova, Polina"]
[Black "Kalogridis, Antonios"]
[WhiteFideId "24171760"]
[BlackFideId "25833901"]
[WhiteElo "2355"]
[BlackElo "1596"]
[Result "1-0"]
[Round "09"]
[TimeControl "180+1"]
[Date "2022.05.25"]
[WhiteClock "0:01:39"]
[BlackClock "0:01:21"]

1. e4 {[%clk 0:03:00]}  c5 {[%clk 0:03:00]} 2. Nc3 {[%clk 0:03:00]}  Nc6 {[%clk 0:03:01]} 3. Bb5 {[%clk 0:02:59]}  d6 {[%clk 0:02:59]} 4. Nf3 {[%clk 0:02:56]}  Bd7 {[%clk 0:02:53]} 5. O-O {[%clk 0:02:56]}  g6 {[%clk 0:02:49]} 6. d4 {[%clk 0:02:54]}  cxd4 {[%clk 0:02:47]} 7. Nxd4 {[%clk 0:02:53]}  Nxd4 {[%clk 0:02:46]} 8. Qxd4 {[%clk 0:02:52]}  f6 {[%clk 0:02:47]} 9. Be3 {[%clk 0:02:48]}  Nh6 {[%clk 0:02:45]} 10. Rad1 {[%clk 0:02:43]}  Nf7 {[%clk 0:02:44]} 11. f4 {[%clk 0:02:38]}  Bg7 {[%clk 0:02:44]} 12. f5 {[%clk 0:02:37]}  Bxb5 {[%clk 0:02:42]} 13. Nxb5 {[%clk 0:02:36]}  O-O {[%clk 0:02:42]} 14. Kh1 {[%clk 0:02:33]}  Ne5 {[%clk 0:02:38]} 15. c4 {[%clk 0:02:27]}  a6 {[%clk 0:02:37]} 16. Nc3 {[%clk 0:02:27]}  Rc8 {[%clk 0:02:28]} 17. b3 {[%clk 0:02:27]}  Qd7 {[%clk 0:02:24]} 18. a4 {[%clk 0:02:25]}  g5 {[%clk 0:02:22]} 19. Nd5 {[%clk 0:02:22]}  Kh8 {[%clk 0:02:17]} 20. Nb6 {[%clk 0:02:21]}  Qc7 {[%clk 0:02:14]} 21. Nxc8 {[%clk 0:02:21]}  Rxc8 {[%clk 0:02:15]} 22. Qd5 {[%clk 0:02:20]}  Qc6 {[%clk 0:02:11]} 23. Bd4 {[%clk 0:02:17]}  Nd7 {[%clk 0:02:07]} 24. Rf3 {[%clk 0:02:12]}  Nf8 {[%clk 0:02:05]} 25. Qf7 {[%clk 0:02:07]}  Qe8 {[%clk 0:02:04]} 26. Qxe8 {[%clk 0:02:03]}  Rxe8 {[%clk 0:02:05]} 27. c5 {[%clk 0:02:02]}  Nd7 {[%clk 0:02:01]} 28. cxd6 {[%clk 0:02:01]}  exd6 {[%clk 0:02:02]} 29. Bg1 {[%clk 0:01:55]}  Bf8 {[%clk 0:02:01]} 30. Rd4 {[%clk 0:01:54]}  Nc5 {[%clk 0:01:58]} 31. Re3 {[%clk 0:01:50]}  Kg7 {[%clk 0:01:56]} 32. h3 {[%clk 0:01:50]}  a5 {[%clk 0:01:53]} 33. Rc4 {[%clk 0:01:48]}  Re5 {[%clk 0:01:45]} 34. Re2 {[%clk 0:01:46]}  Nxb3 {[%clk 0:01:34]} 35. Rb2 {[%clk 0:01:40]}  Nd2 {[%clk 0:01:21]} 36. Rxd2 {[%clk 0:01:39]} 1-0


[Site "https://www.chess.com"]

[Event "Titled Tuesday Blitz May 24 Early 2022"]
[White "Sismeiro, Miguel"]
[Black "Shipov, Sergei"]
[WhiteFideId "1950975"]
[BlackFideId "4113624"]
[WhiteElo "2031"]
[BlackElo "2797"]
[Result "1/2-1/2"]
[Round "09"]
[TimeControl "180+1"]
[Date "2022.05.24"]
[WhiteClock "0:00:06"]
[BlackClock "0:00:10"]

1. d4 {[%clk 0:03:00]}  Nf6 {[%clk 0:02:58]} 2. Nf3 {[%clk 0:03:01]}  g6 {[%clk 0:02:56]} 3. Nc3 {[%clk 0:03:01]}  d5 {[%clk 0:02:55]} 4. Bf4 {[%clk 0:03:00]}  a6 {[%clk 0:02:54]} 5. e3 {[%clk 0:02:57]}  Bg7 {[%clk 0:02:53]} 6. Be2 {[%clk 0:02:56]}  O-O {[%clk 0:02:53]} 7. Ne5 {[%clk 0:02:54]}  Nbd7 {[%clk 0:02:48]} 8. h4 {[%clk 0:02:54]}  c5 {[%clk 0:02:22]} 9. h5 {[%clk 0:02:46]}  Qb6 {[%clk 0:02:11]} 10. Qd2 {[%clk 0:02:25]}  Qxb2 {[%clk 0:02:01]} 11. Rb1 {[%clk 0:02:24]}  Qa3 {[%clk 0:02:02]} 12. hxg6 {[%clk 0:02:17]}  hxg6 {[%clk 0:02:01]} 13. Bf3 {[%clk 0:02:01]}  e6 {[%clk 0:01:56]} 14. Kf1 {[%clk 0:01:51]}  b5 {[%clk 0:01:53]} 15. g4 {[%clk 0:01:47]}  b4 {[%clk 0:01:41]} 16. Ne2 {[%clk 0:01:20]}  Qxa2 {[%clk 0:01:05]} 17. Kg2 {[%clk 0:01:18]}  Nxe5 {[%clk 0:01:00]} 18. Bxe5 {[%clk 0:01:18]}  Bb7 {[%clk 0:00:59]} 19. dxc5 {[%clk 0:00:39]}  Ne4 {[%clk 0:00:59]} 20. Qd4 {[%clk 0:00:16]}  f6 {[%clk 0:00:58]} 21. Bc7 {[%clk 0:00:14]}  Ng5 {[%clk 0:00:43]} 22. Rb2 {[%clk 0:00:10]}  Qa3 {[%clk 0:00:39]} 23. Rb3 {[%clk 0:00:09]}  Qa2 {[%clk 0:00:39]} 24. Rb2 {[%clk 0:00:10]}  Qa4 {[%clk 0:00:36]} 25. Rxb4 {[%clk 0:00:10]}  Qc6 {[%clk 0:00:37]} 26. Rb6 {[%clk 0:00:10]}  Qxc7 {[%clk 0:00:37]} 27. Qd3 {[%clk 0:00:07]}  f5 {[%clk 0:00:32]} 28. Nf4 {[%clk 0:00:07]}  Nxf3 {[%clk 0:00:31]} 29. Nxe6 {[%clk 0:00:07]}  Qd7 {[%clk 0:00:25]} 30. gxf5 {[%clk 0:00:07]}  Rxf5 {[%clk 0:00:25]} 31. Rd6 {[%clk 0:00:07]}  Qf7 {[%clk 0:00:23]} 32. c6 {[%clk 0:00:04]}  Bxc6 {[%clk 0:00:20]} 33. Rxc6 {[%clk 0:00:05]}  Rf8 {[%clk 0:00:21]} 34. Nf4 {[%clk 0:00:05]}  Ne5 {[%clk 0:00:17]} 35. Qxd5 {[%clk 0:00:04]}  Rg5+ {[%clk 0:00:17]} 36. Kf1 {[%clk 0:00:04]}  Qxd5 {[%clk 0:00:17]} 37. Nxd5 {[%clk 0:00:05]}  Ng4 {[%clk 0:00:16]} 38. Nf4 {[%clk 0:00:05]}  Rgf5 {[%clk 0:00:14]} 39. Rxg6 {[%clk 0:00:05]}  Rxf4 {[%clk 0:00:12]} 40. exf4 {[%clk 0:00:05]}  Rxf4 {[%clk 0:00:13]} 41. Rg1 {[%clk 0:00:03]}  Rxf2+ {[%clk 0:00:10]} 42. Ke1 {[%clk 0:00:03]}  Rxc2 {[%clk 0:00:10]} 43. R1xg4 {[%clk 0:00:03]}  Rc7 {[%clk 0:00:10]} 44. Kd2 {[%clk 0:00:03]}  a5 {[%clk 0:00:09]} 45. Rxg7+ {[%clk 0:00:04]}  Rxg7 {[%clk 0:00:09]} 46. Rxg7+ {[%clk 0:00:05]}  Kxg7 {[%clk 0:00:10]} 47. Kc3 {[%clk 0:00:06]} 1/2-1/2


[Site "https://www.chess.com"]

[Event "Titled Tuesday Blitz May 24 Early 2022"]
[White "Skytte, Rasmus"]
[Black "Soumya, Swaminathan"]
[WhiteFideId "1404210"]
[BlackFideId "5016193"]
[WhiteElo "2430"]
[BlackElo "2115"]
[Result "0-1"]
[Round "09"]
[TimeControl "180+1"]
[Date "2022.05.25"]
[WhiteClock "0:01:51"]
[BlackClock "0:00:48"]

1. d4 {[%clk 0:02:52]}  Nf6 {[%clk 0:02:58]} 2. Bf4 {[%clk 0:02:50]}  g6 {[%clk 0:02:55]} 3. e3 {[%clk 0:02:47]}  Bg7 {[%clk 0:02:55]} 4. Nf3 {[%clk 0:02:47]}  c5 {[%clk 0:02:53]} 5. c3 {[%clk 0:02:47]}  b6 {[%clk 0:02:52]} 6. Bd3 {[%clk 0:02:45]}  Bb7 {[%clk 0:02:51]} 7. O-O {[%clk 0:02:45]}  d6 {[%clk 0:02:49]} 8. Nbd2 {[%clk 0:02:45]}  O-O {[%clk 0:02:46]} 9. h3 {[%clk 0:02:45]}  Nbd7 {[%clk 0:02:42]} 10. Qe2 {[%clk 0:02:37]}  a6 {[%clk 0:02:18]} 11. e4 {[%clk 0:02:35]}  Re8 {[%clk 0:01:53]} 12. d5 {[%clk 0:02:23]}  b5 {[%clk 0:01:50]} 13. c4 {[%clk 0:02:20]}  e5 {[%clk 0:01:18]} 14. Bg3 {[%clk 0:02:12]}  b4 {[%clk 0:01:03]} 15. Bc2 {[%clk 0:02:03]}  Nh5 {[%clk 0:00:59]} 16. Bh2 {[%clk 0:02:00]}  Nf4 {[%clk 0:00:58]} 17. Bxf4 {[%clk 0:02:00]}  exf4 {[%clk 0:00:58]} 18. Ba4 {[%clk 0:01:59]}  Bxb2 {[%clk 0:00:55]} 19. Rab1 {[%clk 0:01:57]}  Bc3 {[%clk 0:00:52]} 20. Bxd7 {[%clk 0:01:55]}  Qxd7 {[%clk 0:00:52]} 21. Ne1 {[%clk 0:01:54]}  Bxd2 {[%clk 0:00:48]} 22. Qxd2 {[%clk 0:01:51]}  Rxe4 {[%clk 0:00:48]} 23. f3 {[%clk 0:01:51]} 0-1


[Site "https://www.chess.com"]

[Event "Titled Tuesday Blitz May 24 Early 2022"]
[White "Tanenbaum, Zachary"]
[Black "Petre, Nad-Titus"]
[WhiteFideId "2060850"]
[BlackFideId "1204165"]
[WhiteElo "2168"]
[BlackElo "2354"]
[Result "1-0"]
[Round "09"]
[TimeControl "180+1"]
[Date "2022.05.24"]
[WhiteClock "0:00:16"]
[BlackClock "0:00:01"]

1. e4 {[%clk 0:02:59]}  c6 {[%clk 0:02:59]} 2. d4 {[%clk 0:02:59]}  d5 {[%clk 0:03:00]} 3. exd5 {[%clk 0:03:00]}  cxd5 {[%clk 0:03:00]} 4. Bd3 {[%clk 0:03:00]}  Nc6 {[%clk 0:03:00]} 5. c3 {[%clk 0:03:01]}  e6 {[%clk 0:02:55]} 6. Bf4 {[%clk 0:03:00]}  Bd6 {[%clk 0:02:55]} 7. Bg3 {[%clk 0:03:00]}  Nge7 {[%clk 0:02:54]} 8. Nf3 {[%clk 0:03:01]}  f6 {[%clk 0:02:35]} 9. O-O {[%clk 0:02:57]}  O-O {[%clk 0:02:34]} 10. Re1 {[%clk 0:02:56]}  Qc7 {[%clk 0:02:33]} 11. c4 {[%clk 0:02:51]}  Bd7 {[%clk 0:02:27]} 12. a3 {[%clk 0:02:44]}  Ng6 {[%clk 0:02:21]} 13. Nc3 {[%clk 0:02:33]}  Bxg3 {[%clk 0:02:18]} 14. hxg3 {[%clk 0:02:33]}  dxc4 {[%clk 0:02:17]} 15. Bxc4 {[%clk 0:02:33]}  Rae8 {[%clk 0:02:16]} 16. d5 {[%clk 0:02:27]}  Nce5 {[%clk 0:02:11]} 17. Ba2 {[%clk 0:02:24]}  Kh8 {[%clk 0:01:56]} 18. Nd4 {[%clk 0:02:21]}  exd5 {[%clk 0:01:46]} 19. Nxd5 {[%clk 0:02:17]}  Qd6 {[%clk 0:01:39]} 20. Qb3 {[%clk 0:01:58]}  Ng4 {[%clk 0:01:10]} 21. Rad1 {[%clk 0:01:12]}  Rxe1+ {[%clk 0:01:07]} 22. Rxe1 {[%clk 0:01:13]}  Qc5 {[%clk 0:01:02]} 23. Qc3 {[%clk 0:01:11]}  Rc8 {[%clk 0:00:48]} 24. Qd3 {[%clk 0:00:27]}  N6e5 {[%clk 0:00:46]} 25. Qd2 {[%clk 0:00:19]}  Rd8 {[%clk 0:00:30]} 26. Rd1 {[%clk 0:00:15]}  Bc6 {[%clk 0:00:27]} 27. Ne6 {[%clk 0:00:15]}  Rxd5 {[%clk 0:00:09]} 28. Nxc5 {[%clk 0:00:14]}  Rxd2 {[%clk 0:00:09]} 29. Rxd2 {[%clk 0:00:15]}  h6 {[%clk 0:00:07]} 30. Bd5 {[%clk 0:00:15]}  Bxd5 {[%clk 0:00:03]} 31. Rxd5 {[%clk 0:00:16]}  b6 {[%clk 0:00:03]} 32. Nd3 {[%clk 0:00:16]}  Nc4 {[%clk 0:00:01]} 33. Rd4 {[%clk 0:00:16]}  Nge5 {[%clk 0:00:01]} 34. Nxe5 {[%clk 0:00:16]}  Nxe5 {[%clk 0:00:02]} 35. f4 {[%clk 0:00:16]}  Nf7 {[%clk 0:00:02]} 36. Rd7 {[%clk 0:00:16]}  Kg8 {[%clk 0:00:02]} 37. Rxa7 {[%clk 0:00:16]}  b5 {[%clk 0:00:02]} 38. Rb7 {[%clk 0:00:15]}  Nd6 {[%clk 0:00:02]} 39. Rb6 {[%clk 0:00:16]}  Nc4 {[%clk 0:00:01]} 40. Rxb5 {[%clk 0:00:16]} 1-0


[Site "https://www.chess.com"]

[Event "Titled Tuesday Blitz May 24 Early 2022"]
[White "Tasev, Dejan"]
[Black "Warchol, Kamil"]
[WhiteFideId "936618"]
[BlackFideId "21858241"]
[WhiteElo "2253"]
[BlackElo "1951"]
[Result "1-0"]
[Round "09"]
[TimeControl "180+1"]
[Date "2022.05.25"]
[WhiteClock "0:01:41"]
[BlackClock "0:00:20"]

1. e4 {[%clk 0:03:00]}  c5 {[%clk 0:02:58]} 2. Nf3 {[%clk 0:03:00]}  d6 {[%clk 0:02:56]} 3. Nc3 {[%clk 0:03:00]}  a6 {[%clk 0:02:55]} 4. d4 {[%clk 0:03:00]}  cxd4 {[%clk 0:02:53]} 5. Nxd4 {[%clk 0:03:01]}  b5 {[%clk 0:02:53]} 6. a3 {[%clk 0:02:58]}  Bb7 {[%clk 0:02:52]} 7. Be3 {[%clk 0:02:57]}  Nf6 {[%clk 0:02:48]} 8. f3 {[%clk 0:02:57]}  Nbd7 {[%clk 0:02:43]} 9. Qd2 {[%clk 0:02:56]}  Rc8 {[%clk 0:02:37]} 10. O-O-O {[%clk 0:02:56]}  e6 {[%clk 0:02:31]} 11. g4 {[%clk 0:02:55]}  h6 {[%clk 0:02:26]} 12. h4 {[%clk 0:02:55]}  Be7 {[%clk 0:02:26]} 13. Be2 {[%clk 0:02:54]}  Ne5 {[%clk 0:02:07]} 14. g5 {[%clk 0:02:52]}  Ng8 {[%clk 0:02:07]} 15. f4 {[%clk 0:02:46]}  Nc4 {[%clk 0:02:05]} 16. Bxc4 {[%clk 0:02:46]}  Rxc4 {[%clk 0:01:53]} 17. g6 {[%clk 0:02:46]}  Nf6 {[%clk 0:01:44]} 18. gxf7+ {[%clk 0:02:41]}  Kxf7 {[%clk 0:01:43]} 19. f5 {[%clk 0:02:41]}  exf5 {[%clk 0:01:28]} 20. exf5 {[%clk 0:02:30]}  Bxh1 {[%clk 0:01:26]} 21. Rxh1 {[%clk 0:02:29]}  Qa8 {[%clk 0:01:18]} 22. Rg1 {[%clk 0:02:27]}  Ne4 {[%clk 0:01:16]} 23. Qg2 {[%clk 0:02:20]}  Bf6 {[%clk 0:00:51]} 24. Nxe4 {[%clk 0:02:14]}  Rd8 {[%clk 0:00:33]} 25. Qg6+ {[%clk 0:01:56]}  Kf8 {[%clk 0:00:20]} 26. Ne6+ {[%clk 0:01:41]} 1-0


[Site "https://www.chess.com"]

[Event "Titled Tuesday Blitz May 24 Early 2022"]
[White "Vajda, Levente"]
[Black "Prokofiev, Valentyn"]
[WhiteFideId "1203975"]
[BlackFideId "14160161"]
[WhiteElo "2573"]
[BlackElo "2174"]
[Result "1/2-1/2"]
[Round "09"]
[TimeControl "180+1"]
[Date "2022.05.24"]
[WhiteClock "0:00:19"]
[BlackClock "0:01:05"]

1. e4 {[%clk 0:03:00]}  e5 {[%clk 0:02:59]} 2. Nf3 {[%clk 0:03:00]}  Nc6 {[%clk 0:03:00]} 3. Bc4 {[%clk 0:03:01]}  Nf6 {[%clk 0:03:00]} 4. d3 {[%clk 0:03:01]}  h6 {[%clk 0:03:00]} 5. O-O {[%clk 0:03:00]}  d6 {[%clk 0:03:00]} 6. c3 {[%clk 0:02:58]}  g5 {[%clk 0:03:00]} 7. d4 {[%clk 0:02:57]}  g4 {[%clk 0:02:59]} 8. Nfd2 {[%clk 0:02:52]}  exd4 {[%clk 0:02:59]} 9. cxd4 {[%clk 0:02:52]}  Nxd4 {[%clk 0:02:59]} 10. Nc3 {[%clk 0:02:52]}  Bg7 {[%clk 0:02:57]} 11. Nb3 {[%clk 0:02:46]}  Nc6 {[%clk 0:02:53]} 12. Bf4 {[%clk 0:02:33]}  O-O {[%clk 0:02:48]} 13. Qd2 {[%clk 0:02:33]}  Kh7 {[%clk 0:02:44]} 14. Rad1 {[%clk 0:02:31]}  Nd7 {[%clk 0:02:41]} 15. Nd5 {[%clk 0:02:20]}  Nde5 {[%clk 0:02:41]} 16. Be2 {[%clk 0:02:20]}  Be6 {[%clk 0:02:41]} 17. Bg3 {[%clk 0:02:19]}  Rc8 {[%clk 0:02:28]} 18. f4 {[%clk 0:02:19]}  gxf3 {[%clk 0:02:27]} 19. gxf3 {[%clk 0:02:20]}  Bxd5 {[%clk 0:02:20]} 20. Qxd5 {[%clk 0:02:18]}  Ng6 {[%clk 0:02:19]} 21. Qd2 {[%clk 0:02:06]}  Qf6 {[%clk 0:02:15]} 22. Rb1 {[%clk 0:01:45]}  h5 {[%clk 0:02:14]} 23. f4 {[%clk 0:01:32]}  h4 {[%clk 0:02:15]} 24. e5 {[%clk 0:01:32]}  dxe5 {[%clk 0:01:49]} 25. fxe5 {[%clk 0:01:33]}  Qe6 {[%clk 0:01:49]} 26. Nc5 {[%clk 0:01:09]}  Qh3 {[%clk 0:01:48]} 27. Ne4 {[%clk 0:01:01]}  Bh6 {[%clk 0:01:04]} 28. Nf6+ {[%clk 0:00:38]}  Kg7 {[%clk 0:01:04]} 29. Nh5+ {[%clk 0:00:38]}  Kh7 {[%clk 0:01:04]} 30. Nf6+ {[%clk 0:00:35]}  Kg7 {[%clk 0:01:05]} 31. Nh5+ {[%clk 0:00:31]}  Kh7 {[%clk 0:01:05]} 32. Nf6+ {[%clk 0:00:19]} 1/2-1/2


[Site "https://www.chess.com"]